bitfinex-derivatives/quotes_BNBF0:USTF0_20250413
["timestamp","ask_amount","ask_price","bid_price","bid_amount"]
[1744514897577,0.30917153,595.23,594.65,4.248]
[1744514897778,0.30917153,595.24,594.65,4.248]
[1744514898982,0.30917153,595.34,594.65,4.248]
[1744514899177,0.30917153,595.33,594.65,4.248]
[1744514899476,0.30917153,595.32,594.65,4.248]
[1744514899683,0.30917153,595.31,594.65,4.248]
[1744514899881,0.30917153,595.3,594.65,4.248]
[1744514900082,0.30917153,595.29,594.65,4.248]
[1744514900281,0.30917153,595.28,594.65,4.248]
[1744514900475,0.30917153,595.27,594.65,4.248]
[1744514900677,0.30917153,595.26,594.65,4.248]
[1744514900879,0.30917153,595.25,594.65,4.248]
[1744514901080,0.30917153,595.24,594.65,4.248]
[1744514901281,0.33600456,595.23,594.65,4.248]
[1744514901482,0.30917153,595.22,594.65,4.248]
[1744514901683,0.33601585,595.21,594.65,4.248]
[1744514901877,0.30917153,595.2,594.65,4.248]
[1744514902086,0.33602715,595.19,594.65,4.248]
[1744514902281,0.30917153,595.18,594.65,4.248]
[1744514902477,0.33603844,595.17,594.65,4.248]
[1744514902677,0.30917153,595.16,594.65,4.248]
[1744514902882,0.33604973,595.15,594.65,4.248]
[1744514903181,0.30917153,595.14,594.65,4.248]
[1744514903383,0.33604973,595.15,594.65,4.248]
[1744514903581,0.30915843,595.14,594.65,4.248]
[1744514904779,0.33606102,595.13,594.65,4.248]
[1744514905283,0.30915872,595.12,594.65,4.248]
[1744514905483,0.33607232,595.11,594.65,4.248]
[1744514905679,0.30915872,595.1,594.65,4.248]
[1744514905884,0.33608361,595.09,594.65,4.248]
[1744514906083,0.30915872,595.08,594.65,4.248]
[1744514906286,0.33609491,595.07,594.65,4.248]
[1744514906482,0.30915872,595.06,594.65,4.248]
[1744514906686,0.64529334,595.05,594.65,4.248]
[1744514906879,0.64529899,595.04,594.65,4.248]
[1744514907081,0.64530464,595.03,594.65,4.248]
[1744514907285,0.30918714,595.02,593.81,0.29271124]
[1744514907484,0.64531029,595.02,593.82,0.29862549]
[1744514907781,0.64531594,595.01,593.82,0.29862549]
[1744514908085,0.64532159,595.0,593.51,0.29862549]
[1744514908285,0.64534089,594.99,593.53,0.33696696]
[1744514908481,0.64534654,594.98,593.54,0.29864493]
[1744514908686,0.30920079,594.97,593.55,0.29864493]
[1744514908884,0.30920079,594.97,593.56,0.29864493]
[1744514909085,0.60206599,594.97,593.55,0.2928652]
[1744514909387,0.64535784,594.96,593.56,0.63559485]
[1744514909583,0.30920079,594.95,593.57,0.63558918]
[1744514909790,0.33615705,594.96,593.58,0.33693857]
[1744514909989,0.30918094,594.95,593.59,0.29864404]
[1744514910190,0.30918094,594.95,593.6,0.33692722]
[1744514910391,0.30918094,594.95,593.61,0.29864404]
[1744514910588,0.30918094,594.95,593.62,0.33691587]
[1744514910891,0.30918094,594.95,593.63,0.97864404]
[1744514911086,0.30918094,594.95,593.64,0.29864404]
[1744514911390,0.33615705,594.96,593.63,1.506]
[1744514911591,0.30918056,594.95,593.65,0.33689884]
[1744514911887,0.30918056,594.95,593.66,0.29865256]
[1744514912091,0.29285411,594.94,593.67,0.33688749]
[1744514912286,0.30918056,594.93,593.68,0.29865256]
[1744514912485,0.30918056,594.93,593.69,0.33687614]
[1744514912790,0.30918056,594.93,593.7,0.29865256]
[1744514912989,0.30918056,594.93,593.71,0.33686479]
[1744514913190,0.30918056,594.93,593.72,0.29865256]
[1744514913386,0.30918056,594.93,593.73,0.728]
[1744514913587,0.30918056,594.93,593.74,0.29865256]
[1744514913786,0.30918056,594.93,593.74,0.63550033]
[1744514914091,0.30918056,594.92,593.75,0.29865256]
[1744514914292,0.30918056,594.95,593.75,0.29865256]
[1744514914490,0.33615705,594.96,593.75,0.29865256]
[1744514914690,0.33615705,594.96,593.76,0.33683643]
[1744514914891,0.33615705,594.96,593.77,0.29865256]
[1744514915093,0.29276049,594.95,593.78,0.33682508]
[1744514915289,0.29276049,594.95,593.79,0.29865256]
[1744514915488,0.29276049,594.95,593.79,0.63547197]
[1744514915686,0.29276049,594.95,593.8,0.29865256]
[1744514919590,0.30916627,594.94,593.8,0.29865256]
[1744514919996,0.33615705,594.96,593.8,0.29865256]
[1744514920295,0.29281961,594.93,593.8,0.29865256]
[1744514920995,0.29281961,594.93,593.79,0.33681941]
[1744514921195,0.29281961,594.93,593.8,0.2986278]
[1744514922797,0.33615705,594.96,593.8,0.2986278]
[1744514922998,0.30916501,594.95,593.8,0.2986278]
[1744514923499,0.33615705,594.96,593.8,0.2986278]
[1744514923698,0.30917222,594.95,593.8,0.2986278]
[1744514924099,0.29281838,594.94,593.79,0.33681941]
[1744514924398,0.30917219,594.93,593.8,0.29868354]
[1744514925499,0.30917219,594.93,593.8,1.02168354]
[1744514925699,0.29281838,594.94,593.8,0.723]
[1744514925999,0.30917257,594.93,593.81,0.29871465]
[1744514926200,0.30917257,594.95,593.81,0.29871465]
[1744514926399,0.30917257,594.94,593.81,0.29871465]
[1744514926595,0.30917257,594.93,593.81,0.29871465]
[1744514926801,0.30917257,594.95,593.81,0.29871465]
[1744514927001,0.30917257,594.94,593.81,0.29871465]
[1744514927302,0.29281714,594.92,593.8,0.723]
[1744514927510,0.30916831,594.91,593.81,0.29871949]
[1744514928503,0.30916831,594.91,593.81,0.86971949]
[1744514928702,0.30916831,594.91,593.82,0.29871949]
[1744514928906,0.33615705,594.96,593.81,0.571]
[1744514929100,0.30916707,594.95,593.82,0.29871828]
[1744514929305,0.60195219,594.95,593.82,0.29871828]
[1744514929505,0.30916707,594.94,593.82,0.29871828]
[1744514932107,0.30916707,594.95,593.82,0.29871828]
[1744514932307,0.30916707,594.94,593.82,0.29871828]
[1744514932504,0.30916707,594.93,593.83,0.62]
[1744514932807,0.30916707,594.92,593.84,0.29871828]
[1744514933004,0.30916707,594.95,593.84,0.29871828]
[1744514933202,0.29281345,594.92,593.84,0.29871828]
[1744514933407,0.30916707,594.91,593.84,0.29871828]
[1744514933708,0.29281345,594.92,593.83,0.62]
[1744514933909,0.30915959,594.91,593.84,0.2987108]
[1744514935009,0.30915959,594.95,593.84,0.2987108]
[1744514935210,0.33615705,594.96,593.83,0.62]
[1744514935406,0.30917121,594.95,593.84,0.29872241]
[1744514936012,0.30917121,594.95,593.85,0.075]
[1744514936206,0.29281345,594.94,593.86,0.29872241]
[1744514936405,0.30917121,594.93,593.86,0.29872241]
[1744514938011,0.30917121,594.95,593.86,0.29872241]
[1744514938314,0.29281591,594.92,593.86,0.29872241]
[1744514938514,0.30917121,594.91,593.86,0.29872241]
[1744514938710,0.30917121,594.91,593.87,0.155]
[1744514938911,0.30917121,594.91,593.88,0.29872241]
[1744514941111,0.30917121,594.95,593.88,0.29872241]
[1744514942119,0.30917121,594.95,593.89,0.677]
[1744514942310,0.29281345,594.94,593.9,0.29872241]
[1744514942517,0.30917121,594.93,593.9,0.90672241]
[1744514942717,0.30917121,594.93,593.91,0.29872241]
[1744514942912,0.29281345,594.94,593.9,0.608]
[1744514942913,0.30916383,594.92,593.92,0.29871507]
[1744514943114,0.30916383,594.93,593.91,0.29871507]
[1744514943314,0.30916383,594.92,593.92,0.29871507]
[1744514943519,0.30916383,594.93,593.91,0.29871507]
[1744514944018,0.30916383,594.95,593.91,0.29871507]
[1744514945122,0.29280483,594.94,593.91,0.29871507]
[1744514945322,0.30916383,594.93,593.91,0.29871507]
[1744514946021,0.29280483,594.94,593.9,0.608]
[1744514946222,0.30916885,594.93,593.91,0.29872006]
[1744514947221,0.60197614,594.92,593.91,0.29872006]
[1744514947420,0.30916885,594.91,593.91,0.29872006]
[1744514947617,0.29280729,594.92,593.9,0.608]
[1744514947816,0.30917293,594.91,593.91,0.29872411]
[1744514952426,0.29280729,594.92,593.9,0.608]
[1744514952723,0.30917267,594.91,593.91,0.29872387]
[1744514953218,0.29280975,594.9,593.91,0.29872387]
[1744514953623,0.30917267,594.89,593.91,0.29872387]
[1744514954026,0.29280975,594.9,593.9,0.608]
[1744514954225,0.30917293,594.89,593.91,0.29872413]
[1744514954525,0.30917293,594.89,593.91,0.90972413]
[1744514954725,0.30917293,594.89,593.92,0.29872413]
[1744514956123,0.30917293,594.88,593.92,0.29872413]
[1744514956324,0.30917293,594.87,593.92,0.29872413]
[1744514956520,0.30917293,594.87,593.92,1.72472413]
[1744514956722,0.30917293,594.87,593.93,0.29872413]
[1744514957027,0.29281099,594.88,593.93,0.29872413]
[1744514957227,0.29281099,594.88,593.93,0.35]
[1744514957427,0.29281099,594.88,593.94,0.29872588]
[1744514958820,0.29281099,594.88,593.93,0.35]
[1744514959025,0.30920217,594.87,593.93,0.35]
[1744514959728,0.29281099,594.88,593.93,0.35]
[1744514960929,0.30920059,594.87,593.93,0.35]
[1744514961130,0.30920059,594.87,593.93,0.425]
[1744514962025,0.30920059,594.95,593.93,0.425]
[1744514962228,0.30920059,594.94,593.93,0.425]
[1744514962431,0.30920059,594.95,593.93,0.425]
[1744514962730,0.30920059,594.94,593.93,0.425]
[1744514962924,0.30920059,594.95,593.93,0.425]
[1744514963126,0.29283193,594.94,593.93,0.425]
[1744514963324,0.30920059,594.93,593.93,0.425]
[1744514963930,0.33617965,594.92,593.93,0.425]
[1744514964130,0.30920059,594.91,593.93,0.425]
[1744514964430,0.64538589,594.91,593.93,0.425]
[1744514964627,0.30920059,594.9,593.93,0.425]
[1744514965226,0.29283809,594.89,593.93,1.04]
[1744514965426,0.30920059,594.88,593.93,1.04]
[1744514968435,0.30920059,594.88,593.93,1.736]
[1744514969935,0.29283809,594.89,593.93,1.736]
[1744514970235,0.30924678,594.88,593.93,1.736]
[1744514970936,0.30924678,594.9,593.93,1.736]
[1744514971136,0.30924678,594.89,593.93,1.736]
[1744514971436,0.30924678,594.9,593.93,1.736]
[1744514971636,0.30924678,594.88,593.93,1.736]
[1744514971834,0.3361853,594.91,593.93,1.736]
[1744514971835,0.30924678,594.87,593.93,1.736]
[1744514972137,0.30924678,594.86,593.93,1.736]
[1744514972333,0.30924678,594.86,593.93,2.469]
[1744514973136,0.29283686,594.87,593.93,2.469]
[1744514973340,0.30923862,594.86,593.93,2.469]
[1744514974041,0.3361853,594.91,593.93,2.469]
[1744514974341,0.29284179,594.85,593.93,2.469]
[1744514974538,0.3092381,594.84,593.93,2.469]
[1744514974738,0.29284179,594.85,593.93,2.469]
[1744514974937,0.30923717,594.84,593.93,2.469]
[1744514976343,0.29284179,594.85,593.93,2.469]
[1744514976543,0.30923737,594.84,593.93,3.029]
[1744514977036,0.30923737,594.9,593.93,3.029]
[1744514977239,0.30923737,594.89,593.93,3.029]
[1744514977442,0.30923737,594.9,593.93,3.029]
[1744514977640,0.30923737,594.89,593.93,3.029]
[1744514977839,0.30923737,594.88,593.93,3.029]
[1744514978039,0.3361853,594.91,593.93,3.029]
[1744514978244,0.29283686,594.88,593.93,3.029]
[1744514978445,0.30923901,594.87,593.93,3.029]
[1744514980046,0.30923901,594.9,593.93,3.029]
[1744514980348,0.29283686,594.86,593.93,3.029]
[1744514980542,0.30923901,594.85,593.93,3.029]
[1744514981446,0.30924142,594.84,593.93,3.029]
[1744514981645,0.30924142,594.85,593.93,3.029]
[1744514981843,0.30924142,594.84,593.93,3.029]
[1744514982045,0.30924142,594.85,593.93,3.029]
[1744514983044,0.30924142,594.9,593.93,3.029]
[1744514983245,0.29283686,594.84,593.93,3.029]
[1744514983445,0.30924142,594.83,593.93,3.029]
[1744514984344,0.29283686,594.84,593.93,3.029]
[1744514984547,0.30924509,594.83,593.93,3.029]
[1744514985348,0.30924509,594.83,593.93,3.184]
[1744514986047,0.30924509,594.9,593.93,3.184]
[1744514986347,0.29283686,594.82,593.93,3.184]
[1744514986544,0.30924509,594.81,593.93,3.184]
[1744514986743,0.30924509,594.9,593.93,3.184]
[1744514987247,0.29283686,594.89,593.93,3.184]
[1744514987446,0.30924509,594.88,593.93,3.184]
[1744514987645,0.29283686,594.89,593.93,3.184]
[1744514987842,0.30924728,594.87,593.93,3.184]
[1744514988146,0.30924728,594.86,593.93,3.184]
[1744514988347,0.29283686,594.89,593.93,3.184]
[1744514988348,0.30924728,594.88,593.93,3.796]
[1744514988950,0.30924728,594.9,593.93,3.796]
[1744514989244,0.3361853,594.91,593.93,3.796]
[1744514990144,0.29279497,594.9,593.93,3.796]
[1744514994855,0.3361853,594.91,593.93,3.796]
[1744514995355,0.29279497,594.9,593.93,3.796]
[1744514995557,0.30924809,594.89,593.93,3.796]
[1744514996256,0.29279497,594.9,593.93,3.796]
[1744514996456,0.30924506,594.89,593.93,3.796]
[1744514998057,0.30924506,594.9,593.93,3.796]
[1744514998256,0.30924506,594.89,593.93,3.796]
[1744514998450,0.30924506,594.9,593.93,3.796]
[1744514998654,0.30924506,594.89,593.93,3.796]
[1744514998953,0.30924506,594.88,593.93,3.796]
[1744514999153,0.3092438,594.87,593.93,3.796]
[1744514999957,0.3092438,594.87,593.93,4.447]
[1744515001156,0.29284055,594.86,593.93,4.447]
[1744515001357,0.60208435,594.86,593.93,4.447]
[1744515001559,0.3092438,594.85,593.93,4.447]
[1744515001761,0.3092438,594.9,593.93,4.447]
[1744515002060,0.3092438,594.89,593.93,4.447]
[1744515002256,0.3092438,594.88,593.93,4.447]
[1744515002453,0.3092438,594.9,593.93,4.447]
[1744515002657,0.3092438,594.89,593.93,4.447]
[1744515002857,0.29283686,594.89,593.93,4.447]
[1744515003859,0.3361853,594.91,593.93,4.447]
[1744515004160,0.29282207,594.88,593.93,4.447]
[1744515006859,0.3361853,594.91,593.93,4.447]
[1744515007257,0.29282207,594.87,593.93,4.447]
[1744515007458,0.29282207,594.87,593.93,3.714]
[1744515007862,0.29282207,594.87,593.93,3.099]
[1744515009265,0.29282207,594.87,593.93,2.487]
[1744515009566,0.29282207,594.87,593.93,1.927]
[1744515009866,0.29282207,594.87,593.93,1.231]
[1744515010264,0.29282207,594.87,593.93,1.156]
[1744515010567,0.29282207,594.87,593.93,0.806]
[1744515012963,0.30918697,594.86,593.94,0.29873809]
[1744515014871,0.29282207,594.87,593.93,0.806]
[1744515015067,0.30918649,594.86,593.94,0.29873762]
[1744515016070,0.30918649,594.9,593.94,0.29873762]
[1744515016273,0.29281714,594.86,593.94,0.29873762]
[1744515016471,0.29281714,594.86,593.93,0.651]
[1744515016771,0.29281714,594.86,593.94,0.29873972]
[1744515016973,0.29281714,594.86,593.93,0.651]
[1744515017572,0.29281714,594.86,593.94,0.29874303]
[1744515017975,0.3091915,594.85,593.94,0.29874303]
[1744515018174,0.29281714,594.86,593.95,0.29874258]
[1744515018474,0.3091915,594.85,593.93,0.651]
[1744515018674,0.29281714,594.86,593.94,0.29874242]
[1744515022982,0.29281714,594.86,593.84,0.29281222]
[1744515023181,0.29281714,594.86,593.85,0.29873002]
[1744515024884,0.3361853,594.91,593.85,0.29873002]
[1744515025079,0.3361853,594.91,593.8,0.29873002]
[1744515025285,0.2928233,594.86,593.84,0.2928233]
[1744515025582,0.2928233,594.86,593.85,0.29873002]
[1744515026180,0.30917317,594.85,593.85,0.29873002]
[1744515028088,0.30917317,594.9,593.84,0.29873002]
[1744515028289,0.29282946,594.86,593.85,0.29873002]
[1744515028484,0.30917317,594.85,593.85,0.29873002]
[1744515031093,0.3361853,594.91,593.83,0.72]
[1744515031289,0.292827,594.87,593.84,0.59155606]
[1744515031487,0.3091779,594.86,593.85,0.29872906]
[1744515032694,0.292827,594.87,593.84,0.292827]
[1744515032892,0.30917206,594.85,593.86,0.29872325]
[1744515033090,0.30917206,594.84,593.87,0.29872325]
[1744515033287,0.30917206,594.84,593.85,0.29872325]
[1744515033493,0.292827,594.87,593.85,0.29872325]
[1744515033895,0.3361853,594.91,593.85,0.29872325]
[1744515034093,0.30917069,594.9,593.86,0.801]
[1744515034290,0.60198414,594.9,593.87,0.29872325]
[1744515034495,0.29281345,594.9,593.87,0.29872325]
[1744515034696,0.30917473,594.89,593.87,0.29872325]
[1744515035694,0.30917473,594.89,593.88,0.547]
[1744515035898,0.29281345,594.9,593.88,0.547]
[1744515036095,0.30917495,594.89,593.89,0.29872614]
[1744515036289,0.30917495,594.89,593.89,0.37372614]
[1744515036491,0.30917495,594.89,593.9,0.29872614]
[1744515036694,0.30917495,594.89,593.9,1.09172614]
[1744515036993,0.30917495,594.89,593.91,0.29872614]
[1744515037191,0.60198224,594.9,593.91,0.29872614]
[1744515037490,0.29280729,594.9,593.9,0.793]
[1744515037694,0.29280729,594.9,593.91,0.29872616]
[1744515037695,0.30917498,594.89,593.91,0.29872616]
[1744515040198,0.30917498,594.89,593.91,1.00872616]
[1744515040398,0.30917498,594.89,593.92,0.29872616]
[1744515040596,0.29280729,594.9,593.92,0.29872616]
[1744515040899,0.30917242,594.89,593.92,0.29872616]
[1744515042395,0.29280729,594.9,593.91,0.71]
[1744515042595,0.30917276,594.89,593.92,0.29872373]
[1744515043100,0.30917276,594.9,593.92,0.29872373]
[1744515043301,0.60197882,594.9,593.92,0.29872373]
[1744515043503,0.30917276,594.89,593.92,0.29872373]
[1744515044297,0.30917276,594.89,593.92,1.01172373]
[1744515044503,0.30917276,594.89,593.93,0.29872373]
[1744515045200,0.30917276,594.89,593.93,0.64872373]
[1744515045399,0.30917276,594.89,593.94,0.29872373]
[1744515047207,0.29280606,594.9,593.93,0.35]
[1744515047402,0.30917455,594.89,593.94,0.29872572]
[1744515048609,0.30917455,594.89,593.95,0.155]
[1744515048808,0.30917455,594.89,593.96,0.29872572]
[1744515049307,0.3361853,594.91,593.96,0.29872572]
[1744515049308,0.60197814,594.9,593.96,0.29872572]
[1744515049506,0.30917455,594.89,593.96,0.29872572]
[1744515050209,0.30917455,594.89,593.97,0.075]
[1744515050411,0.30917455,594.89,593.98,0.29872572]
[1744515050610,0.30917474,594.88,593.99,0.29872591]
[1744515050805,0.29280359,594.9,593.97,0.075]
[1744515051006,0.29280359,594.9,593.98,0.29872565]
[1744515051206,0.30917448,594.89,593.98,0.29872565]
[1744515052112,0.30917448,594.9,593.98,0.29872565]
[1744515052411,0.30917448,594.89,593.98,0.29872565]
[1744515052603,0.30917448,594.88,593.98,0.29872565]
[1744515052809,0.30917448,594.9,593.98,0.29872565]
[1744515053012,0.3361853,594.91,593.98,0.29872565]
[1744515053214,0.60197659,594.9,593.98,0.29872565]
[1744515053406,0.30917423,594.89,593.99,0.724]
[1744515053609,0.30917423,594.89,594.0,0.29872565]
[1744515053812,0.30917394,594.88,593.99,0.724]
[1744515054007,0.29280236,594.9,594.0,0.29872511]
[1744515054405,0.30917373,594.89,594.0,0.29872511]
[1744515055014,0.30917373,594.9,594.0,0.29872511]
[1744515055213,0.30917373,594.89,594.0,0.29872511]
[1744515058212,0.30917373,594.88,594.0,0.29872511]
[1744515058408,0.30917373,594.89,594.0,0.29872511]
[1744515058615,0.2927962,594.9,593.99,0.724]
[1744515058815,0.30917413,594.89,594.0,0.29872529]
[1744515061115,0.30917413,594.9,594.0,0.29872529]
[1744515061316,0.30917413,594.89,594.0,0.29872529]
[1744515061513,0.3361853,594.91,594.01,0.612]
[1744515061817,0.30917386,594.9,594.01,0.612]
[1744515062315,0.60194174,594.9,594.01,0.612]
[1744515062517,0.29276788,594.9,594.01,0.612]
[1744515063114,0.29276788,594.9,594.02,0.628]
[1744515063922,0.3361853,594.91,594.02,0.628]
[1744515064121,0.30917734,594.89,594.02,0.628]
[1744515064321,0.30917734,594.9,594.02,1.238]
[1744515064620,0.30917734,594.89,594.02,1.238]
[1744515064816,0.3361853,594.91,594.02,1.238]
[1744515065017,0.30917708,594.9,594.02,1.238]
[1744515065219,0.60192772,594.9,594.02,1.238]
[1744515065417,0.30917708,594.89,594.02,1.238]
[1744515066121,0.29275064,594.9,594.02,1.238]
[1744515066422,0.30922209,594.89,594.02,1.238]
[1744515066818,0.3361853,594.91,594.02,1.238]
[1744515067020,0.30921982,594.9,594.02,1.238]
[1744515067218,0.29281961,594.88,594.02,1.238]
[1744515068624,0.29281961,594.88,594.02,1.393]
[1744515070022,0.3361853,594.91,594.02,1.393]
[1744515071227,0.29274694,594.9,594.02,1.393]
[1744515072120,0.30921405,594.89,594.02,1.393]
[1744515073123,0.30921405,594.9,594.02,1.393]
[1744515074127,0.29281099,594.89,594.02,1.393]
[1744515074428,0.30921405,594.88,594.02,2.032]
[1744515074627,0.30921405,594.88,594.02,2.382]
[1744515076026,0.30921405,594.9,594.02,2.382]
[1744515076327,0.29281345,594.87,594.02,2.382]
[1744515076528,0.30921405,594.86,594.02,2.382]
[1744515076731,0.29281345,594.87,594.02,2.382]
[1744515077228,0.30923783,594.86,594.02,2.382]
[1744515079030,0.30923783,594.9,594.02,2.382]
[1744515079231,0.29283809,594.85,594.02,2.382]
[1744515079630,0.30925892,594.84,594.02,2.382]
[1744515080732,0.30925892,594.84,594.02,3.027]
[1744515081834,0.30925892,594.84,594.02,3.102]
[1744515082133,0.60209947,594.83,594.02,3.102]
[1744515082329,0.29284055,594.83,594.02,3.102]
[1744515082834,0.30924066,594.82,594.02,3.102]
[1744515085035,0.30924066,594.88,594.02,3.102]
[1744515085337,0.29282084,594.82,594.02,3.102]
[1744515085529,0.30924066,594.81,594.02,3.102]
[1744515085733,0.29282084,594.82,594.02,3.102]
[1744515087838,0.3361966,594.89,594.02,3.102]
[1744515088039,0.30921874,594.88,594.02,3.102]
[1744515089244,0.29281345,594.87,594.02,3.102]
[1744515089543,0.30921874,594.86,594.02,3.102]
[1744515091143,0.30921874,594.88,594.02,3.102]
[1744515091343,0.29281591,594.85,594.02,3.102]
[1744515091544,0.30921874,594.84,594.02,3.102]
[1744515092446,0.29281591,594.85,594.02,3.102]
[1744515092645,0.30921856,594.84,594.02,3.102]
[1744515095549,0.30921856,594.84,594.02,3.928]
[1744515097053,0.30921856,594.88,594.02,3.928]
[1744515097345,0.3361966,594.89,594.02,3.928]
[1744515097346,0.29281838,594.83,594.02,3.928]
[1744515097550,0.30921501,594.82,594.02,3.928]
[1744515098950,0.29281838,594.83,594.02,3.928]
[1744515099250,0.30920696,594.82,594.02,3.928]
[1744515099846,0.30920696,594.82,594.02,4.588]
[1744515100053,0.30920696,594.88,594.02,4.588]
[1744515100253,0.29282084,594.82,594.02,4.588]
[1744515100453,0.30920696,594.81,594.02,4.588]
[1744515100753,0.30920124,594.8,594.02,4.588]
[1744515100948,0.30920124,594.81,594.02,4.588]
[1744515101148,0.30920124,594.8,594.02,4.588]
[1744515101449,0.30920124,594.79,594.02,4.588]
[1744515101654,0.30920124,594.81,594.02,4.588]
[1744515101850,0.30920124,594.8,594.02,4.588]
[1744515102049,0.30920124,594.79,594.02,4.588]
[1744515102255,0.29282084,594.82,594.02,4.588]
[1744515102256,0.30920124,594.81,594.02,4.588]
[1744515102451,0.30920124,594.8,594.02,4.588]
[1744515102651,0.30920124,594.79,594.02,4.588]
[1744515102851,0.30920124,594.81,594.02,4.588]
[1744515103054,0.30920124,594.8,594.02,4.588]
[1744515103254,0.30920124,594.79,594.02,4.588]
[1744515103451,0.30920124,594.88,594.02,4.588]
[1744515103657,0.30920124,594.87,594.02,4.588]
[1744515103959,0.30919823,594.86,594.02,4.588]
[1744515104158,0.29281345,594.86,594.02,4.588]
[1744515104357,0.30919823,594.85,594.02,4.588]
[1744515104958,0.30919823,594.85,594.03,0.29874738]
[1744515105157,0.29281345,594.86,594.02,4.588]
[1744515105353,0.29281345,594.86,594.02,1.561]
[1744515105958,0.3361966,594.89,594.02,1.561]
[1744515106158,0.30917406,594.88,594.02,1.561]
[1744515107153,0.29280606,594.87,594.02,1.561]
[1744515107654,0.29280606,594.87,594.02,2.405]
[1744515107858,0.29280606,594.87,594.02,2.988]
[1744515108559,0.29280606,594.87,594.02,3.634]
[1744515108962,0.3361966,594.89,594.02,3.634]
[1744515109160,0.30917386,594.88,594.02,4.568]
[1744515109357,0.60192696,594.88,594.02,4.568]
[1744515109562,0.2927531,594.88,594.02,4.568]
[1744515111663,0.2927531,594.88,594.03,0.29870986]
[1744515112061,0.3361966,594.89,594.02,4.493]
[1744515114562,0.3361966,594.89,594.02,4.568]
[1744515114963,0.3361966,594.89,594.03,0.29869538]
[1744515115264,0.3361966,594.89,594.02,4.568]
[1744515115465,0.3361966,594.89,594.03,0.29869746]
[1744515115664,0.30915689,594.88,594.03,0.29869746]
[1744515116862,0.3361966,594.89,594.02,3.742]
[1744515117061,0.30915888,594.88,594.03,0.29871016]
[1744515117560,0.3361966,594.89,594.03,0.29871016]
[1744515117866,0.30915825,594.88,594.03,0.29871016]
[1744515118061,0.3361966,594.89,594.03,0.29871016]
[1744515118465,0.3361966,594.89,594.02,3.742]
[1744515118762,0.3361966,594.89,594.03,0.2987073]
[1744515119265,0.30915845,594.88,594.03,0.2987073]
[1744515119867,0.3361966,594.89,594.03,0.2987073]
[1744515120069,0.30915671,594.88,594.03,0.2987073]
[1744515120264,0.3361966,594.89,594.02,4.416]
[1744515127272,0.3361966,594.89,594.03,0.29860353]
[1744515129573,0.3361966,594.89,594.02,2.343]
[1744515130473,0.30916369,594.88,594.03,0.29861849]
[1744515131374,0.30916369,594.88,594.03,0.64861849]
[1744515131574,0.30916369,594.88,594.04,0.29861849]
[1744515132674,0.3361966,594.89,594.03,2.002]
[1744515132866,0.30916402,594.88,594.04,0.29861738]
[1744515134375,0.30916375,594.87,594.05,0.29866212]
[1744515134672,0.30916375,594.86,594.06,0.29866212]
[1744515134878,0.30916375,594.88,594.04,0.29866212]
[1744515135073,0.30916375,594.88,594.03,2.002]
[1744515135074,0.30916375,594.87,594.05,0.29866212]
[1744515135273,0.30916375,594.86,594.06,0.29866212]
[1744515135474,0.30916375,594.88,594.05,0.72]
[1744515135675,0.3361966,594.89,594.06,0.29866212]
[1744515135874,0.30915613,594.88,594.06,0.29866212]
[1744515136676,0.3361966,594.89,594.06,0.29866212]
[1744515137678,0.30915698,594.88,594.05,0.72]
[1744515139180,0.3361966,594.89,594.05,0.72]
[1744515139382,0.30916026,594.88,594.05,0.72]
[1744515140883,0.30916026,594.88,594.06,0.29869748]
[1744515141282,0.30916026,594.88,594.05,0.72]
[1744515142378,0.30916026,594.88,594.05,0.875]
[1744515143584,0.30916026,594.88,594.06,0.29869918]
[1744515143980,0.3361966,594.89,594.05,0.875]
[1744515144189,0.30915657,594.88,594.06,0.29868873]
[1744515145286,0.30915657,594.88,594.05,0.875]
[1744515145484,0.30915657,594.88,594.06,0.075]
[1744515146187,0.29280236,594.87,594.06,0.075]
[1744515146387,0.30915657,594.86,594.06,0.075]
[1744515147185,0.29280236,594.87,594.06,0.075]
[1744515147388,0.29280236,594.87,594.06,0.745]
[1744515147886,0.3361966,594.89,594.06,0.745]
[1744515148083,0.30917377,594.88,594.06,0.745]